[Event "German Masters 2022"]
[Site "Magdeburg"]
[Date "2022.08.19"]
[Round "4.2"]
[White "Svane, Rasmus"]
[Black "Braun, Arik"]
[Result "0-1"]
[ECO "B42"]
[WhiteElo "2649"]
[BlackElo "2594"]
[Annotator "TA"]
[PlyCount "118"]
[EventDate "2022.08.16"]
[EventType "tourn"]
[EventCountry "GER"]
[SourceTitle "playchess.com"]
[Source "ChessBase"]
[SourceQuality "1"]
[TimeControl "40/5400+30:1800+30"]

{[%evp 13,118,39,43,43,45,39,50,27,40,33,52,45,34,0,54,49,56,63,54,24,17,10,13,11,47,0,13,8,28,0,0,0,0,0,0,0,9,0,5,0,14,5,23,20,57,50,59,21,64,0,0,0,0,0,0,0,0,0,0,0,0,0,0,0,0,-8,-7,-7,0,-42,-13,-301,-337,-337,-337,-660,-651,-627,-568,-647,-623,-637,-611,-568,-568,-945,-822,-1272,-742,-1265,-1262,-1238,-1183,-1188,-1165,-1100,-1081,-5439,-5535,-5525,-5480,-1794,-1693,-5185,-5150,-2122,-615]} 1. e4 {[%emt 0:00:36]} c5 {[%emt 0:00:14]} 2. Nf3 {[%emt 0:00:12]} e6 {[%emt 0:00:04]} 3. d4 {[%emt 0:00:09]} cxd4 {[%emt 0:00:11]} 4. Nxd4 {[%emt 0:00:05]} a6 {[%emt 0:00:04]} 5. Bd3 {[%emt 0:00:53]} Bc5 {[%emt 0:01:03]} 6. Nb3 {[%emt 0:00:12]} Be7 {[%emt 0:00:08]} 7. Qg4 {[%emt 0:01:03]} g6 {[%emt 0:00:12]} 8. O-O {[%emt 0:03:07] B42: Sicilian: Kan Variation: 5 Bd3.} d6 {[%emt 0:00:19]} 9. Qe2 {[%emt 0:02:38]} Nd7 {[%emt 0:00:20]} 10. c4 {[%emt 0:00:55] White is slightly better.} Ne5 {[%emt 0:04:10]} 11. Nc3 {[%emt 0:09:14]} Nf6 {[%emt 0:01:30]} 12. Be3 {[%emt 0:12:26]} O-O {[%emt 0:01:58] [#]} 13. Rac1 $146 {[%emt 0:03:15]} ({Predecessor:} 13. Rfd1 Qc7 14. Rac1 b6 15. Nd4 Bb7 16. f3 Nxd3 17. Qxd3 Nd7 18. b3 Rfc8 19. Qd2 {½-½ (43) Ahvenjarvi,J (2309)-Rodshtein,M (2653) Budva 2019}) 13... b6 {[%emt 0:04:46]} (13... Nfg4 $11) 14. Bb1 $14 {[%emt 0:13:20]} Bb7 {[%emt 0:01:34]} 15. f4 {[%emt 0:01:46]} Ned7 {[%emt 0:01:30]} 16. f5 {[%emt 0:12:27]} Ne5 {[%emt 0:09:45]} 17. fxe6 {[%emt 0:03:16]} fxe6 {[%emt 0:00:13]} 18. Nd4 {[%emt 0:00:09]} Qd7 {[%emt 0:04:39]} (18... Nfg4 {is interesting.} 19. Nxe6 Rxf1+ 20. Rxf1 Qc8) 19. Nf3 {[%emt 0:07:20]} (19. Bh6 $14) 19... Nxf3+ {[%emt 0:02:17]} (19... Nfg4 $5 {[%cal Rg4e3]}) 20. Rxf3 {[%emt 0:00:28]} Qc7 {[%emt 0:00:49]} 21. Bd4 {[%emt 0:08:27]} Nd7 {[%emt 0:05:48]} ({Don't do} 21... e5 22. Be3 $16) 22. Rxf8+ {[%emt 0:03:29]} Bxf8 {[%emt 0:00:24][%cal Be7f8,Bf8g7,Bg7e5,Be5d4][%mdl 32]} 23. Rd1 {[%emt 0:01:07]} Ne5 {[%emt 0:07:13]} 24. b3 {[%emt 0:01:01]} Bc6 {[%emt 0:00:25]} 25. a4 {[%emt 0:01:10]} Rb8 {[%emt 0:00:46]} 26. h3 {[%emt 0:01:33]} Be8 {[%emt 0:02:15]} 27. Be3 {[%emt 0:02:26]} Bg7 {[%emt 0:01:53]} 28. Qd2 {[%emt 0:03:15]} Nc6 {[%emt 0:02:37]} 29. Ne2 {[%emt 0:00:44][%cal Bc3e2,Be2f4,Bf4d5][%mdl 32]} Be5 {[%emt 0:02:02]} 30. Nf4 {[%emt 0:00:29]} (30. Ba2 $5 {[%cal Re2f4]}) 30... Bf7 {[%emt 0:00:32]} 31. Bd3 {[%emt 0:02:28]} (31. b4 $14) 31... Bd4 $11 {[%emt 0:03:29]} 32. Be2 {[%emt 0:01:44]} e5 {[%emt 0:03:00] [#] Threatens to win with ...Bxe3+.} 33. Nd5 {[%emt 0:01:45]} Qd8 {[%emt 0:03:21]} 34. Kh2 {[%emt 0:01:41] Strongly threatening Bg5.} Bxe3 {[%emt 0:00:58]} 35. Qxe3 {[%emt 0:01:10]} Nd4 {[%emt 0:00:35]} 36. Rf1 {[%emt 0:00:33]} Bxd5 {[%emt 0:01:29]} 37. cxd5 {[%emt 0:00:17]} a5 {[%emt 0:02:23]} 38. Bg4 {[%emt 0:01:27]} Kg7 {[%emt 0:03:14]} 39. Rc1 {[%emt 0:00:56]} ({Of course not} 39. Qf2 Nxb3 40. Bd1 Nc5 $17) 39... Qe7 {[%emt 0:03:21]} 40. Rc3 {[%emt 0:00:39]} Rb7 {[%emt 0:05:47]} 41. Rc6 {[%emt 0:17:32]} Qf6 {[%emt 0:05:01]} (41... h5 $5 {[%cal Rh5g4]} 42. Be6 Nxc6 43. dxc6 Rb8 $15) 42. Be6 $2 {[%emt 0:05:11][%mdl 8192] Loses the game.} Nxc6 $19 {[%emt 0:04:18]} (42... Nxe6 43. dxe6 Qxe6 44. Qd2 $11) 43. dxc6 {[%emt 0:00:06][%mdl 4096] Endgame [#] KQR-KQB} Rc7 {[%emt 0:00:07]} ({Stronger than} 43... Re7 44. Bd7 Rxd7 45. cxd7 $11) 44. Bd5 {[%emt 0:05:27]} (44. Qxb6 Qf4+ 45. Kh1 Qc1+ 46. Qg1 Qxg1+ 47. Kxg1) 44... Qf4+ {[%emt 0:00:52] Black is clearly winning.} 45. Qxf4 {[%emt 0:00:05]} exf4 {[%emt 0:00:03] KR-KB} 46. Kg1 {[%emt 0:01:34]} Kf6 {[%emt 0:07:36]} 47. Kf2 {[%emt 0:00:05]} g5 {[%emt 0:03:17]} 48. Kf3 {[%emt 0:03:57]} h5 {[%emt 0:00:40]} 49. h4 gxh4 {[%emt 0:00:33]} 50. Kxf4 {[%emt 0:00:26]} Rg7 {[%emt 0:00:15]} 51. Ke3 {[%emt 0:01:10]} Ke7 {[%emt 0:00:18]} 52. Kf2 {[%emt 0:00:33]} Kd8 {[%emt 0:00:13]} 53. Kf3 {[%emt 0:00:29]} Kc7 {[%emt 0:00:15]} 54. Kf2 {[%emt 0:00:08]} Rg3 {[%emt 0:00:15]} 55. Kf1 {[%emt 0:00:30]} h3 {[%emt 0:01:28]} 56. gxh3 {[%emt 0:00:49]} Rxh3 {[%emt 0:00:04]} 57. Kg2 {[%emt 0:00:05]} Rc3 {[%emt 0:00:07]} 58. Kh2 {[%emt 0:00:03]} Rxc6 {[%emt 0:00:49]} 59. Kg3 {[%emt 0:00:03]} Rc1 {[%emt 0:00:34] Weighted Error Value: White=0.78/Black=0.08 (flawless)} (59... b5 $142 60. Kh4 bxa4 61. bxa4 Rb6 62. Kxh5 Rb4) 0-1

[Event "German Masters 2022"]
[Site "Magdeburg"]
[Date "2022.08.19"]
[Round "4.3"]
[White "Rosner, Jonas"]
[Black "Svane, Frederik"]
[Result "1-0"]
[ECO "E01"]
[WhiteElo "2478"]
[BlackElo "2521"]
[Annotator "TA"]
[PlyCount "105"]
[EventDate "2022.08.16"]
[EventType "tourn"]
[EventCountry "GER"]
[SourceTitle "playchess.com"]
[Source "ChessBase"]
[SourceQuality "1"]
[TimeControl "40/5400+30:1800+30"]

{[%evp 17,105,10,15,15,24,21,27,10,17,11,6,18,50,39,49,40,46,44,45,9,47,51,55,40,53,59,112,74,87,87,70,60,53,55,55,32,61,34,43,39,28,41,37,30,96,103,101,99,109,112,155,172,164,169,139,53,158,111,142,143,255,255,237,236,235,218,271,229,294,298,273,257,533,524,520,520,516,444,511,481,465,304,458,375,736,731,711,711,29990,29985]} 1. d4 {[%emt 0:00:04]} Nf6 {[%emt 0:00:07]} 2. c4 {[%emt 0:00:09]} e6 {[%emt 0:00:05]} 3. g3 {[%emt 0:00:06]} d5 {[%emt 0:00:06]} 4. Bg2 {[%emt 0:00:14]} Bb4+ {[%emt 0:00:09]} 5. Nd2 {[%emt 0:00:18]} O-O {[%emt 0:01:02]} 6. Ngf3 {[%emt 0:00:27]} b6 {[%emt 0:01:21]} 7. O-O {[%emt 0:00:30]} Bb7 {[%emt 0:00:05]} 8. a3 {[%emt 0:00:41]} Be7 {[%emt 0:01:14]} 9. cxd5 $1 {[%emt 0:00:48] 9.cxd5 is better than 9.b4.} exd5 {[%emt 0:00:21]} 10. b4 {[%emt 0:00:44] E16: Queen's Indian: 4 g3 Bb7 5 Bg2 Bb4+.} c6 {[%emt 0:03:43]} 11. Bb2 {[%emt 0:01:38]} Nbd7 {[%emt 0:03:59]} 12. Qb3 {[%emt 0:03:10] White has an edge.} Re8 {[%emt 0:08:38] [#]} 13. Ne5 $146 {[%emt 0:03:26]} ({Predecessor:} 13. Rfc1 Bd6 14. e3 Qe7 15. Ne1 Ne4 16. Ndf3 Rac8 17. Nd3 Ba6 18. Qd1 f6 19. Bf1 {0-1 (30) Krykun,Y (2340)-Ferreira,J (2492) Batumi 2018}) 13... Bd6 {[%emt 0:04:11]} 14. Ndf3 {[%emt 0:01:58]} Ne4 {[%emt 0:05:15]} 15. Rac1 {[%emt 0:04:40]} Nxe5 {[%emt 0:10:54]} 16. dxe5 {[%emt 0:00:49]} Bf8 {[%emt 0:14:47]} 17. Rfd1 {[%emt 0:02:46]} c5 {[%emt 0:09:51] Against Nd4} 18. bxc5 {[%emt 0:16:00]} Bxc5 {[%emt 0:03:38]} 19. e3 {[%emt 0:01:25]} Qe7 {[%emt 0:04:26]} 20. Ne1 {[%emt 0:12:31][%cal Bf3e1,Be1c2,Bc2d4][%mdl 32]} Rad8 {[%emt 0:02:04]} 21. a4 {[%emt 0:08:17]} Bc6 {[%emt 0:11:33]} (21... h6 $14) 22. Nc2 {[%emt 0:07:50]} Ba8 {[%emt 0:02:51]} 23. f3 {[%emt 0:02:11]} Ng5 {[%emt 0:00:11]} 24. Nd4 {[%emt 0:00:49]} (24. h4 $5 {[%cal Rh4g5]} Ne6 25. f4 $14) 24... f6 {[%emt 0:03:02]} 25. exf6 {[%emt 0:05:33]} Qxf6 {[%emt 0:00:04]} 26. Kh1 {[%emt 0:04:23]} Qf7 {[%emt 0:00:27]} 27. h4 {[%emt 0:04:01]} (27. a5 $5) 27... Ne6 {[%emt 0:01:34]} 28. f4 {[%emt 0:01:01]} Nf8 {[%emt 0:04:34]} 29. Rd3 {[%emt 0:04:17]} Nd7 {[%emt 0:03:00]} 30. Nf3 {[%emt 0:00:52]} Be7 {[%emt 0:00:44]} (30... Qg6 $11) 31. Ne5 $1 $16 {[%emt 0:01:52]} Nxe5 {[%emt 0:00:04]} 32. Bxe5 {[%emt 0:00:10] Black must now prevent Rc7.} Bf6 {[%emt 0:00:31]} 33. Rc7 {[%emt 0:03:57] White is much more active.} Re7 {[%emt 0:00:10]} 34. Bxf6 {[%emt 0:01:17]} Qxf6 {[%emt 0:01:01] [#]} 35. Rxe7 {[%emt 0:02:59]} Qxe7 {[%emt 0:00:01]} 36. Kh2 {[%emt 0:00:30]} (36. e4 $1 $16) 36... Qf7 {[%emt 0:01:35]} (36... Kh8 $14) 37. Qd1 {[%emt 0:03:08]} (37. Rd4 $142) 37... Re8 {[%emt 0:00:35]} 38. Rxd5 {[%emt 0:00:25]} ({But not} 38. Bxd5 $6 Bxd5 39. Rxd5 Rxe3 $11) 38... Qf8 {[%emt 0:01:05]} (38... Bxd5 $2 39. Bxd5 Re6 40. Qb3 $18) (38... Bc6 $16 {keeps fighting.} 39. Rd8 Rxd8 40. Qxd8+ Qe8 41. Bd5+ Kh8 42. Qxe8+ Bxe8) 39. Rd7 $18 {[%emt 0:02:28]} Bxg2 {[%emt 0:00:13]} 40. Qb3+ {[%emt 0:00:23]} Kh8 {[%emt 0:00:06]} 41. Kxg2 {[%emt 0:30:33][%mdl 4096] Endgame KQR-KQR} Qf6 {[%emt 0:08:39]} 42. Qd5 {[%emt 0:00:00] Against Qc6} Qb2+ {[%emt 0:07:35]} 43. Qd2 {[%emt 0:00:00]} Qb3 {[%emt 0:06:27]} 44. Rxa7 $40 {[%emt 0:00:00][%mdl 128] White attacks with force.} h5 $2 {[%emt 0:06:08]} (44... Qc4 45. Kf2 Rg8) 45. Qd4 {[%emt 0:00:00][%csl Ga7][%cal Rd4g7]} Qc2+ {[%emt 0:01:51]} 46. Kf3 {[%emt 0:00:00][%csl Ga7][%cal Rd4g7]} Qc6+ {[%emt 0:00:36] [#]} 47. e4 $1 {[%emt 0:00:00][%csl Ga7][%cal Rd4g7,Be3e4,Be4e5][%mdl 32]} Qg6 {[%emt 0:00:04]} 48. Rc7 {[%emt 0:00:00] Inhibits Rc8.} Qg4+ {[%emt 0:01:04]} 49. Kf2 {[%emt 0:00:00] Hoping for Rc6.} Qg6 {[%emt 0:00:11]} (49... Rc8 $142 50. e5 (50. Qxb6 Rd8 $11) 50... Rxc7 51. Qd8+ Kh7 52. Qxc7 Qe6 53. Qc2+ g6) 50. e5 {[%emt 0:00:00] And now Qd7 would win.} Qe6 {[%emt 0:00:35]} (50... Qb1 51. Qd7 Rg8) 51. Qd1 {[%emt 0:01:09]} Qf5 {[%emt 0:00:21]} 52. Qd7 {[%emt 0:00:38][%csl Gc7][%cal Rd7g7]} Qg6 {[%emt 0:01:27]} 53. Rc6 {[%emt 0:01:03] Weighted Error Value: White=0.09 (flawless) /Black=0.32} 1-0

[Event "German Masters 2022"]
[Site "Magdeburg"]
[Date "2022.08.19"]
[Round "4.4"]
[White "Koelle, Tobias"]
[Black "Kollars, Dmitrij"]
[Result "1/2-1/2"]
[ECO "D43"]
[WhiteElo "2436"]
[BlackElo "2648"]
[Annotator "TA"]
[PlyCount "143"]
[EventDate "2022.08.16"]
[EventType "tourn"]
[EventCountry "GER"]
[SourceTitle "playchess.com"]
[Source "ChessBase"]
[SourceQuality "1"]
[TimeControl "40/5400+30:1800+30"]

{[%evp 14,143,17,14,14,13,10,11,15,38,41,16,19,22,11,14,18,12,10,1,137,135,143,160,126,139,137,75,74,70,70,76,76,75,60,56,56,58,69,69,66,65,134,141,154,93,101,81,81,81,86,72,109,100,86,59,59,59,59,55,55,55,55,48,55,55,55,55,56,56,59,48,59,55,59,48,55,48,54,54,56,56,56,29,29,29,29,29,30,30,48,29,30,29,56,29,30,30,30,30,45,45,45,37,37,37,48,48,48,52,54,45,64,64,64,64,64,64,64,64,64,0,64,64,64,18,18,18,18,18,18,20]} 1. d4 {[%emt 0:00:03]} d5 {[%emt 0:03:46]} 2. c4 {[%emt 0:00:04]} e6 {[%emt 0:00:04]} 3. Nf3 {[%emt 0:00:09]} Nf6 {[%emt 0:00:08]} 4. Nc3 {[%emt 0:00:07]} c6 {[%emt 0:00:18]} 5. Bg5 {[%emt 0:00:08]} h6 {[%emt 0:00:16]} 6. Bxf6 {[%emt 0:00:03]} Qxf6 {[%emt 0:00:04]} 7. e3 {[%emt 0:00:07]} Nd7 {[%emt 0:00:21]} 8. Be2 {[%emt 0:00:22]} g6 {[%emt 0:01:01] D43: Semi-Slav: 5 Bg5 h6.} 9. O-O {[%emt 0:00:09]} Qe7 {[%emt 0:00:16]} 10. e4 {[%emt 0:10:58]} dxc4 {[%emt 0:00:17]} 11. e5 {[%emt 0:05:37]} Bg7 {[%emt 0:00:22]} 12. Nd2 {[%emt 0:01:36][%cal Bf3d2,Bd2c4,Bc4d6][%mdl 32]} O-O {[%emt 0:01:32]} 13. Nxc4 {[%emt 0:03:01]} Rd8 {[%emt 0:01:20][%cal Od7e5] [#] ...Nxe5! is the strong threat.} 14. Nd6 $146 {[%emt 0:01:08]} ({Predecessor:} 14. f4 Nb6 15. Qd3 Nxc4 16. Qxc4 b5 17. Qxc6 Bb7 18. Qc5 Bf8 19. Qxe7 Bxe7 20. Nxb5 a6 21. Nd6 Bxd6 22. exd6 a5 23. Rad1 a4 24. Rd2 Rxd6 25. b3 {½-½ (25) Woelfelschneider,P (2362)-Meljnikova,E (2137) LSS email 2017}) 14... c5 {[%emt 0:02:36]} 15. f4 {[%emt 0:03:34] White wants to play Rc1.} cxd4 16. Qxd4 {[%emt 0:01:42] With the idea Rad1.} Nb6 {[%emt 0:05:06]} (16... f6 $11 {remains equal.}) 17. Rad1 $36 {[%emt 0:08:55][%mdl 2048] White is in control. 0x0.001e3d900844dp-1022s more active pieces.} Nd5 {[%emt 0:15:31]} 18. Nxd5 {[%emt 0:06:54]} exd5 {[%emt 0:00:04]} 19. Qxd5 {[%emt 0:06:29]} Be6 {[%emt 0:00:29]} 20. Qxb7 {[%emt 0:03:02]} ({White should try} 20. Qf3) 20... Qxb7 {[%emt 0:00:47]} 21. Nxb7 {[%emt 0:01:51]} Rxd1 {[%emt 0:00:08]} 22. Rxd1 {[%emt 0:01:08] Hoping for b3.} Bxa2 {[%emt 0:00:07]} 23. Bf3 {[%emt 0:05:06]} Rc8 {[%emt 0:12:15]} 24. Ra1 {[%emt 0:05:35]} Be6 {[%emt 0:01:27]} 25. Rxa7 {[%emt 0:03:15]} Rc1+ {[%emt 0:08:08]} 26. Kf2 {[%emt 0:00:06]} Rc2+ {[%emt 0:00:11]} 27. Kg3 {[%emt 0:00:35]} Rxb2 {[%emt 0:01:09]} ({Black should play} 27... Bf8 $1 $14) 28. Nc5 {[%emt 0:01:56]} Bc4 {[%emt 0:03:30]} 29. Ne4 {[%emt 0:01:17]} (29. Ra8+ $142 Kh7 30. Rc8) 29... Rb8 {[%emt 0:04:09]} 30. h4 {[%emt 0:00:53]} h5 {[%emt 0:03:37]} 31. Rc7 {[%emt 0:01:18]} Bb3 {[%emt 0:03:31]} 32. Nc5 {[%emt 0:07:20]} Bh6 {[%emt 0:04:45]} 33. Nxb3 {[%emt 0:09:57]} Rxb3 {[%emt 0:00:12][%mdl 4096] Endgame KRB-KRB} 34. Rc4 {[%emt 0:01:27] Inhibits Rb4.} Bf8 {[%emt 0:06:49]} 35. Rc8 {[%emt 0:02:13]} Re3 {[%emt 0:15:51]} 36. Kf2 {[%emt 0:01:22]} Ra3 {[%emt 0:00:07]} 37. Rc7 {[%emt 0:01:54]} Ra7 {[%emt 0:00:30]} 38. Rc2 {[%emt 0:00:46]} Be7 {[%emt 0:01:48]} 39. g3 {[%emt 0:00:10]} Kg7 {[%emt 0:00:21]} 40. Bd5 {[%emt 0:01:48]} Rd7 {[%emt 0:01:32]} 41. Be4 {[%emt 0:30:54]} Ra7 {[%emt 0:32:26]} 42. Kg2 {[%emt 0:01:05]} Ra4 {[%emt 0:02:14]} 43. Bf3 {[%emt 0:01:00]} Ra7 {[%emt 0:00:00]} 44. Rf2 {[%emt 0:00:00]} Bc5 {[%emt 0:00:00]} 45. Rd2 {[%emt 0:00:00]} Bb4 {[%emt 0:00:00]} 46. Re2 {[%emt 0:00:00]} Rd7 {[%emt 0:00:00]} 47. Re4 {[%emt 0:00:00]} Bc5 {[%emt 0:00:00]} 48. Rc4 {[%emt 0:00:00]} (48. e6 $5 {[%cal Re6d7]} Rd2+ 49. Kh1 fxe6 50. Rxe6 $14) 48... Rd2+ {[%emt 0:00:00]} 49. Kh3 {[%emt 0:00:00]} Bg1 {[%emt 0:00:00][%csl Gg1][%cal Rd2h2] [#]} 50. Bg2 {[%emt 0:00:00]} Rd3 {[%emt 0:00:00]} 51. Rc2 {[%emt 0:00:00] Prevents Bf2.} Be3 {[%emt 0:00:00] And now ...Bxf4 would win.} 52. Kh2 {[%emt 0:00:00]} Rd7 {[%emt 0:00:00]} 53. Re2 {[%emt 0:00:00]} Bc5 {[%emt 0:00:00]} 54. Bh3 {[%emt 0:00:00]} Rb7 {[%emt 0:00:00]} 55. Rd2 {[%emt 0:00:00]} Be3 {[%emt 0:00:00]} 56. Rd3 {[%emt 0:00:00]} Ba7 {[%emt 0:00:00]} 57. Bg2 {[%emt 0:00:00]} Rc7 {[%emt 0:00:00]} 58. Rd2 {[%emt 0:00:00]} Be3 {[%emt 0:00:00]} 59. Re2 {[%emt 0:00:00]} Ba7 {[%emt 0:00:00]} 60. Bf3 {[%emt 0:00:00]} Bd4 {[%emt 0:00:00]} 61. Kg2 {[%emt 0:00:00]} Bc3 {[%emt 0:00:00]} 62. e6 {[%emt 0:00:00] [#] Threatens to win with e7.} fxe6 {[%emt 0:00:00]} 63. Rxe6 {[%emt 0:00:00]} Bf6 {[%emt 0:00:00]} 64. Rd6 {[%emt 0:00:00]} Rc2+ {[%emt 0:00:00]} 65. Kh3 {[%emt 0:00:00]} Rc7 {[%emt 0:00:00]} 66. Rd5 {[%emt 0:00:00]} Kh6 {[%emt 0:00:00]} 67. Rd6 {[%emt 0:00:00]} Kg7 $1 {[%emt 0:00:00]} 68. Ra6 {[%emt 0:00:00]} Re7 {[%emt 0:00:00]} 69. f5 {[%emt 0:00:00]} (69. Rc6 $14 {might be stronger.}) 69... gxf5 $11 {[%emt 0:02:04] The position is equal.} 70. Bxh5 {[%emt 0:00:00]} Re3 {[%emt 0:00:43] Prevents Ra3.} 71. Kg2 {[%emt 0:00:00]} f4 {[%emt 0:00:21]} 72. gxf4 {[%emt 0:00:00] Black escapes into a draw.  Weighted Error Value: White=0.07 (flawless) /Black=0.10 (very precise)} 1/2-1/2

[Event "German Masters 2022"]
[Site "Magdeburg"]
[Date "2022.08.19"]
[Round "4.5"]
[White "Engel, Luis"]
[Black "Fridman, Daniel"]
[Result "1/2-1/2"]
[ECO "C09"]
[WhiteElo "2558"]
[BlackElo "2599"]
[Annotator "TA"]
[PlyCount "82"]
[EventDate "2022.08.16"]
[EventType "tourn"]
[EventCountry "GER"]
[SourceTitle "playchess.com"]
[Source "ChessBase"]
[SourceQuality "1"]
[TimeControl "40/5400+30:1800+30"]

{[%evp 12,82,20,18,29,21,18,23,19,18,29,23,26,28,27,24,29,24,36,24,25,33,31,25,36,15,55,52,45,43,42,49,49,35,40,37,50,54,71,47,59,52,62,30,47,32,32,0,0,0,0,-7,0,0,0,0,18,-48,-47,-31,0,0,0,0,0,0,0,0,0,0,0,0,0]} 1. e4 {[%emt 0:00:01]} e6 {[%emt 0:00:38]} 2. d4 {[%emt 0:00:06]} d5 {[%emt 0:00:05]} 3. Nd2 {[%emt 0:00:04]} c5 {[%emt 0:00:07]} 4. exd5 {[%emt 0:00:05]} exd5 {[%emt 0:00:06]} 5. Ngf3 {[%emt 0:00:05]} Nc6 {[%emt 0:00:06]} 6. Bb5 {[%emt 0:00:12][%cal Bf1b5,Bb5e2,Be2d3][%mdl 32]} Qe7+ $1 {[%emt 0:00:06][%mdl 4] outshines the older 6...Bd6.} 7. Be2 {[%emt 0:00:05]} Qc7 {[%emt 0:00:05] C09: French Tarrasch: 3...c5 4 exd5 exd5 5 Ngf3 Nc6.} ({Resist} 7... Nxd4 8. Nxd4 cxd4 9. O-O $16) 8. O-O {[%emt 0:00:26]} Nf6 {[%emt 0:00:05]} 9. Re1 {[%emt 0:00:56]} cxd4 {[%emt 0:00:26] White has an edge.} 10. Bd3+ {[%emt 0:00:15]} (10. Nb3 Bb4 11. Bd2 Bxd2 12. Qxd2 O-O 13. Nfxd4 Bd7 14. Nxc6 bxc6 15. Nc5 Bf5 16. Bd3 Bxd3 17. cxd3 Rfe8 18. h3 Qd6 19. d4 Ne4 20. Qe3 g6 {½-½ (50) Engel,L (2553)-Fridman,D (2601) Magdeburg 2021}) 10... Be7 {[%emt 0:01:41]} 11. h3 {[%emt 0:00:06]} O-O {[%emt 0:05:14]} 12. Nb3 {[%emt 0:00:20][%cal Bd2b3,Bb3d4,Bd4b5][%mdl 32] Inhibits Bc5.} Bd7 {[%emt 0:14:04]} 13. Nbxd4 {[%emt 0:01:32]} Rfe8 {[%emt 0:00:56]} 14. c3 {[%emt 0:02:49] [#]} Bf8 $146 {[%emt 0:06:25]} ({Predecessor:} 14... a6 15. Be3 h6 16. Qc2 Bd6 17. Rad1 Rad8 18. a3 Ne7 19. Bc1 Nc8 20. Bf5 Ne7 {½-½ (50) Schwenck,M (2524)-Tauber,H (2527) GER email 2018}) 15. Nb5 {[%emt 0:07:02]} Qb6 {[%emt 0:10:20]} 16. Be3 {[%emt 0:06:22]} Bc5 {[%emt 0:00:38]} 17. Bxc5 {[%emt 0:00:43]} Qxc5 {[%emt 0:00:06]} 18. Qc2 {[%emt 0:15:11]} Nb4 {[%emt 0:18:13]} 19. cxb4 {[%emt 0:00:08]} Qxc2 {[%emt 0:00:03]} 20. Bxc2 {[%emt 0:00:07]} Bxb5 {[%emt 0:00:03]} 21. Nd4 {[%emt 0:09:54]} Bd7 {[%emt 0:04:44]} 22. Bb3 {[%emt 0:01:00]} Kf8 {[%emt 0:05:14]} 23. Red1 {[%emt 0:03:34]} h5 {[%emt 0:07:13]} 24. Rd2 {[%emt 0:04:35]} Rac8 {[%emt 0:00:58]} 25. Rad1 {[%emt 0:01:47]} Rc7 {[%emt 0:01:42]} 26. f3 {[%emt 0:04:06]} h4 {[%emt 0:06:23]} 27. Kf2 {[%emt 0:01:16]} a6 {[%emt 0:08:17]} 28. a3 {[%emt 0:08:33]} (28. Ne2 {seems wilder.} Bb5 29. Nc3 Bc4 30. Bxc4 Rxc4 31. b5) 28... g5 {[%emt 0:00:40]} 29. Rc2 {[%emt 0:04:41]} Rxc2+ {[%emt 0:02:18]} 30. Nxc2 {[%emt 0:00:05]} Be6 {[%emt 0:01:11]} 31. Nd4 {[%emt 0:07:19]} Nh5 {[%emt 0:01:30]} 32. Ne2 {[%emt 0:01:48]} Rc8 {[%emt 0:03:35]} 33. Rd4 {[%emt 0:02:16]} Ke7 {[%emt 0:00:20]} 34. Ke3 {[%emt 0:03:01]} (34. Bxd5 $11 Bxd5 35. Rxd5) 34... Kd6 $15 {[%emt 0:00:47]} 35. f4 {[%emt 0:03:56]} Nxf4 {[%emt 0:00:54]} 36. Nxf4 {[%emt 0:00:06] The position is equal.} gxf4+ {[%emt 0:00:04]} 37. Kxf4 {[%emt 0:01:20] KRB-KRB} ({Reject} 37. Rxf4 Ke5 38. Kf3 Rc1 39. Rxh4 Rb1 40. Rh5+ Kd6 $17) 37... Rg8 {[%emt 0:02:38]} 38. Rd2 {[%emt 0:00:11]} f6 {[%emt 0:00:30]} 39. Bd1 {[%emt 0:01:00]} Rg5 {[%emt 0:00:52]} 40. Bf3 {[%emt 0:02:44]} Rg7 {[%emt 0:00:33]} 41. Rd4 {[%emt 0:35:17]} b5 {[%emt 0:08:54] Weighted Error Value: White=0.08 (flawless) /Black=0.05 (flawless)} 1/2-1/2

[Event "German Masters 2022"]
[Site "Magdeburg"]
[Date "2022.08.20"]
[Round "5.1"]
[White "Fridman, Daniel"]
[Black "Keymer, Vincent"]
[Result "1/2-1/2"]
[ECO "D41"]
[WhiteElo "2599"]
[BlackElo "2686"]
[Annotator "TA"]
[PlyCount "54"]
[EventDate "2022.08.16"]
[EventType "tourn"]
[EventCountry "GER"]
[SourceTitle "playchess.com"]
[Source "ChessBase"]
[SourceQuality "1"]
[TimeControl "40/5400+30:1800+30"]

{[%evp 14,54,24,19,17,17,20,25,18,18,19,17,10,13,14,12,9,9,10,9,12,10,10,10,14,5,8,6,12,6,15,0,0,0,0,0,0,0,0,0,0,0,0]} 1. d4 {[%emt 0:02:59]} Nf6 {[%emt 0:00:04]} 2. c4 {[%emt 0:00:30]} e6 {[%emt 0:00:03]} 3. Nf3 {[%emt 0:00:06]} d5 {[%emt 0:00:05]} 4. Nc3 {[%emt 0:00:07]} c5 {[%emt 0:00:30]} 5. cxd5 {[%emt 0:01:05]} Nxd5 {[%emt 0:00:05]} 6. g3 {[%emt 0:01:20]} cxd4 {[%emt 0:00:25]} 7. Nxd5 {[%emt 0:01:05]} Qxd5 {[%emt 0:00:05]} 8. Qxd4 {[%emt 0:00:10]} Qb5 {[%emt 0:00:05] D41: Queen's Gambit Declined: Semi-Tarrasch with 5 cxd5.} 9. e4 {[%emt 0:01:24]} Qb4+ {[%emt 0:00:04]} 10. Qxb4 {[%emt 0:02:16]} Bxb4+ {[%emt 0:00:05] White has an edge.} 11. Bd2 {[%emt 0:00:07] The position is equal.} Nc6 {[%emt 0:03:14]} 12. Bb5 {[%emt 0:03:44] [#] Threatens to win with Bxb4.} Bd7 {[%emt 0:00:20]} 13. Bxc6 {[%emt 0:17:01]} Bxd2+ {[%emt 0:00:16]} 14. Kxd2 {[%emt 0:00:06]} Bxc6 {[%emt 0:00:03]} 15. Ke3 {[%emt 0:00:08]} f5 {[%emt 0:01:17]} 16. exf5 {[%emt 0:03:02] [#]} Rf8 $146 {[%emt 0:04:48]} ({Predecessor:} 16... O-O 17. Rhe1 Bxf3 18. Kxf3 Rxf5+ 19. Kg2 Kf7 20. Rac1 Re8 21. Re4 Re7 22. Rc8 Rd7 {½-½ (105) Postny,E (2582)-Keymer,V (2591) Europe Echecs INT 2021}) 17. Rhe1 {[%emt 0:04:23] And now Nd4 would win.} Bxf3 {[%emt 0:00:33]} 18. Kxf3 {[%emt 0:00:08]} Rxf5+ $11 {[%emt 0:00:03][%mdl 4096] Endgame KRR-KRR} 19. Kg2 {[%emt 0:00:10]} Ke7 {[%emt 0:01:17]} 20. Rac1 {[%emt 0:00:26]} Rd8 {[%emt 0:00:09]} 21. Re2 {[%emt 0:00:09] Prevents Rd2.} Rfd5 {[%emt 0:05:03]} 22. f4 {[%emt 0:01:04]} Kf6 {[%emt 0:04:05]} 23. Kf3 {[%emt 0:03:51]} Rd3+ {[%emt 0:00:43]} 24. Re3 {[%emt 0:00:21]} Rd2 {[%emt 0:01:23][%csl LRb2,LRh2]} 25. Re2 {[%emt 0:00:07]} R2d3+ {[%emt 0:00:04]} 26. Re3 {[%emt 0:00:06]} Rd2 {[%emt 0:00:03][%csl LRb2,LRh2]} 27. Re2 {[%emt 0:00:08]} R2d3+ {An interesting draw.  Weighted Error Value: White=0.02 (flawless) /Black=0.01 (flawless)} 1/2-1/2